bitfinex/quotes_ETHUSD_20250324
["timestamp","ask_amount","ask_price","bid_price","bid_amount"]
[1742806426986,5.59431,2095.9,2095.5,9.54396]
[1742806427189,10.3657,2095.9,2095.5,4.77198]
[1742806427525,4.77146,2095.8,2095.5,4.77198]
[1742806427810,5.59431,2095.9,2095.5,6.44697273]
[1742806428119,5.59431,2095.9,2095.5,11.21897273]
[1742806428333,10.3657,2095.9,2095.5,6.44692273]
[1742806428522,4.77144,2095.8,2095.5,6.44692273]
[1742806429127,5.59431,2095.9,2095.5,11.21892273]
[1742806429331,10.84091,2096.1,2095.6,6.51536908]
[1742806429487,4.77107,2096.0,2095.7,4.77158]
[1742806429883,6.07,2096.1,2095.8,5.32133]
[1742806430138,6.07,2096.1,2095.7,4.77167]
[1742806430327,10.84088,2096.1,2095.7,4.77167]
[1742806430510,6.07,2096.1,2095.7,5.89548423]
[1742806430828,10.84089,2096.1,2095.7,10.66715423]
[1742806431218,10.84089,2096.1,2095.8,4.77143]
[1742806431430,10.84089,2096.1,2095.7,5.89551423]
[1742806431737,10.84089,2096.1,2095.8,4.77138]
[1742806431922,10.84089,2096.1,2095.7,5.89553423]
[1742806432128,10.84089,2096.1,2095.8,5.53056265]
[1742806432705,4.77089,2096.1,2095.8,5.53056265]
[1742806433125,6.07,2096.3,2095.8,5.53056265]
[1742806433325,4.77037,2096.3,2096.0,4.77099]
[1742806433725,4.77037,2096.3,2096.0,6.50366527]
[1742806433926,4.77009,2096.4,2096.0,6.50366527]
[1742806434143,9.54033,2096.4,2096.0,6.55137031]
[1742806434325,4.77009,2096.4,2096.0,6.55137031]
[1742806434528,9.54036,2096.4,2096.0,6.55137031]
[1742806434729,9.54036,2096.4,2096.0,6.50366527]
[1742806435140,4.77009,2096.4,2096.0,11.32221031]
[1742806435417,9.54033,2096.4,2096.0,6.50351527]
[1742806435614,4.77009,2096.4,2096.0,6.50351527]
[1742806435829,4.77033,2096.3,2096.0,6.50351527]
[1742806436145,4.77062,2096.2,2095.9,0.55]
[1742806436341,4.77062,2096.2,2095.9,5.32119]
[1742806436639,4.77099,2096.0,2095.6,5.46826442]
[1742806436842,4.77079,2096.1,2095.7,4.77166]
[1742806437036,4.77093,2096.1,2095.7,4.77166]
[1742806437637,4.77093,2096.1,2095.7,4.77151]
[1742806437839,4.77104,2096.0,2095.7,4.77151]
[1742806438056,4.77056,2096.2,2095.7,6.53436344]
[1742806438226,4.77092,2096.1,2095.7,6.53436344]
[1742806438549,4.77107,2096.0,2095.7,6.53436344]
[1742806439459,9.54173,2096.1,2095.7,6.53436344]
[1742806440260,4.7708,2096.1,2095.7,6.53436344]
[1742806440422,0.7575,2096.0,2095.5,1.47398442]
[1742806440622,9.54261,2095.9,2095.5,5.46859442]
[1742806440851,4.77123,2095.9,2095.5,10.24063442]
[1742806441028,6.07,2096.3,2095.6,1.48928442]
[1742806441230,6.07,2096.3,2095.8,4.77144]
[1742806441435,4.77067,2096.2,2095.8,4.77144]
[1742806441636,4.77067,2096.2,2095.8,5.87467844]
[1742806441846,4.77067,2096.2,2095.8,5.87452844]
[1742806442754,4.77067,2096.2,2095.8,10.64580844]
[1742806442923,10.84031,2096.3,2095.9,5.46764442]
[1742806443123,6.07,2096.3,2095.9,5.46764442]
[1742806443352,6.07,2096.3,2096.0,0.65708829]
[1742806443654,6.8955,2096.5,2096.2,4.77036]
[1742806443854,6.8955,2096.5,2096.0,4.77089]
[1742806443855,10.83996,2096.5,2096.1,4.77067]
[1742806444155,15.60997,2096.5,2096.1,5.79448044]
[1742806444460,15.60998,2096.5,2096.1,5.79448044]
[1742806444626,4.7701,2096.4,2096.1,5.79448044]
[1742806445046,4.77038,2096.3,2096.0,0.69648442]
[1742806445646,4.77021,2096.4,2096.0,5.46729442]
[1742806445852,4.77021,2096.4,2096.1,0.69648442]
[1742806446159,6.07,2096.5,2096.1,5.46721442]
[1742806446363,6.07,2096.5,2096.1,6.49578735]
[1742806446658,6.07,2096.5,2096.1,11.26645735]
[1742806446860,0.7551,2096.7,2096.4,4.77008]
[1742806447165,0.1429867,2097.0,2096.8,4.76904]
[1742806447336,0.1429867,2097.0,2096.8,5.245944]
[1742806447538,0.1429867,2097.0,2096.8,4.76904]
[1742806448737,0.1429867,2097.0,2096.9,4.76894]
[1742806448940,0.1429867,2097.0,2096.9,5.31894]
[1742806449147,0.1429867,2097.0,2096.9,6.13514]
[1742806450335,0.1429867,2097.0,2096.9,6.18282093]
[1742806450538,0.1429867,2097.0,2096.9,8.18814039]
[1742806451144,0.1429867,2097.0,2096.9,8.88462481]
[1742806451362,6.7e-06,2097.0,2096.9,8.83694388]
[1742806451544,6.7e-06,2097.0,2096.9,8.88462327]
[1742806451745,6.7e-06,2097.0,2096.9,14.38694388]
[1742806452465,6.7e-06,2097.0,2096.9,23.39694388]
[1742806453035,6.38e-06,2097.4,2097.3,5.58273]
[1742806453267,6.38e-06,2097.4,2097.3,5.31803]
[1742806454359,6.38e-06,2097.4,2097.3,4.76803]
[1742806454670,6.38e-06,2097.4,2097.2,10.08631]
[1742806454967,6.38e-06,2097.4,2097.2,4.7681]
[1742806455168,6.38e-06,2097.4,2097.0,10.3296]
[1742806455342,6.38e-06,2097.4,2097.1,0.93304621]
[1742806455542,6.38e-06,2097.4,2097.2,4.81585059]
[1742806455758,6.38e-06,2097.4,2097.3,4.76803]
[1742806456164,6.38e-06,2097.4,2097.2,4.76817]
[1742806456367,6.38e-06,2097.4,2097.2,4.7681]
[1742806456571,6.38e-06,2097.4,2097.1,1.70864621]
[1742806456746,6.38e-06,2097.4,2097.1,5.70131621]
[1742806456951,6.38e-06,2097.4,2097.1,10.46962621]
[1742806457166,6.38e-06,2097.4,2097.3,4.76803]
[1742806458270,6.38e-06,2097.4,2097.1,5.70146621]
[1742806458679,6.38e-06,2097.4,2097.3,5.57673]
[1742806459375,6.38e-06,2097.4,2097.3,6.12673]
[1742806460278,5.55623967,2098.1,2097.3,6.12673]
[1742806460279,0.00720967,2098.1,2098.0,4.76644]
[1742806460467,0.00720967,2098.1,2098.0,11.14354]
[1742806460667,4.7669,2097.8,2097.5,5.57]
[1742806461196,0.00720967,2098.1,2097.5,5.57]
[1742806461351,4.76748,2097.6,2097.4,1.42286925]
[1742806461553,4.76758,2097.5,2097.4,1.42286925]
[1742806462689,4.7682,2097.3,2097.0,1.2667854]
[1742806462980,3.0,2097.9,2097.0,1.2667854]
[1742806462981,0.7992,2098.0,2097.0,6.4662]
[1742806463180,4.7672,2097.7,2097.3,4.768]
[1742806463373,11.63575,2098.0,2097.4,0.04767473]
[1742806463374,11.63576,2098.0,2097.4,0.04767473]
[1742806463549,6.8692,2098.0,2097.5,4.76758]
[1742806463754,4.76679,2097.9,2097.5,5.721124]
[1742806463955,4.76679,2097.9,2097.5,5.720974]
[1742806464154,4.76692,2097.8,2097.5,5.720974]
[1742806464383,9.53398,2097.8,2097.5,0.953544]
[1742806464563,4.76751,2097.6,2097.2,4.76818]
[1742806464777,4.76713,2097.7,2097.2,4.76818]
[1742806465098,4.76713,2097.7,2097.3,4.76793]
[1742806465500,9.53446,2097.7,2097.3,4.76792]
[1742806465687,4.76713,2097.7,2097.3,4.76792]
[1742806465883,9.53443,2097.7,2097.3,5.776507]
[1742806466061,4.76713,2097.7,2097.3,10.544447]
[1742806466395,4.76713,2097.7,2097.4,4.76778]
[1742806466600,4.76713,2097.7,2097.3,5.776507]
[1742806467090,4.76765,2097.5,2097.2,10.41024]
[1742806467278,4.76761,2097.5,2097.2,5.642]
[1742806467468,4.7679,2097.4,2097.2,5.642]
[1742806467668,9.53587,2097.4,2097.2,5.642]
[1742806467991,4.76828,2097.2,2097.0,5.62]
[1742806468187,4.76866,2097.1,2096.8,0.69648442]
[1742806468487,4.7688,2097.0,2096.8,0.69648442]
[1742806468861,4.76894,2096.9,2096.8,0.69648442]
[1742806469070,10.83894,2096.9,2096.8,0.69648442]
[1742806469796,14.58964,2096.9,2096.8,0.69648442]
[1742806470096,17.002334,2096.9,2096.8,0.69648442]
[1742806470670,4.7703,2096.3,2096.2,5.605]
[1742806470871,4.7703,2096.3,2096.0,4.55184032]
[1742806470872,4.7703,2096.3,2096.1,0.95516857]
[1742806471071,4.77076,2096.1,2096.0,0.69648442]
[1742806472089,4.77076,2096.1,2096.0,0.50017621]
[1742806472477,8.108161,2096.1,2095.4,5.57369]
[1742806472690,8.108161,2096.1,2095.3,31.12857]
[1742806472691,9.54327,2095.8,2095.3,31.12857]
[1742806472999,5.56662,2096.0,2095.3,31.1285]
[1742806473305,0.7955,2096.0,2095.3,30.65838648]
[1742806473602,10.84092,2096.1,2095.7,4.77165]
[1742806473801,4.77099,2096.0,2095.7,4.77165]
[1742806474802,4.77099,2096.0,2095.6,4.7719]
[1742806475002,4.7713,2095.9,2095.6,4.7719]
[1742806475304,4.77148,2095.8,2095.6,5.583]
[1742806475505,9.54308,2095.8,2095.6,5.583]
[1742806475803,0.954308,2095.8,2095.3,26.356]
[1742806476002,4.77221,2095.5,2095.3,26.356]
[1742806476303,4.77222,2095.5,2095.3,26.356]
[1742806476494,6.8512,2095.8,2094.8,9.73638483]
[1742806476495,6.07,2095.8,2095.0,0.7837]
[1742806476878,4.77226,2095.5,2095.1,9.54588]
[1742806477078,4.77225,2095.5,2095.1,4.773]
[1742806477278,9.54452,2095.5,2095.1,4.773]
[1742806477501,9.54454,2095.5,2095.1,4.773]
[1742806477702,4.77238,2095.4,2095.0,5.55694]
[1742806477896,4.77261,2095.3,2095.0,5.55694]
[1742806478094,4.77182,2095.7,2095.3,4.7725]
[1742806478404,4.77212,2095.6,2095.1,9.54569]
[1742806478714,9.54448,2095.5,2095.1,4.77284]
[1742806478874,4.77217,2095.5,2095.1,4.77284]
[1742806479076,10.84147,2095.8,2095.0,0.7837]
[1742806479077,6.07,2095.8,2095.0,0.7837]
[1742806479280,4.77289,2095.2,2094.8,4.77362]
[1742806479478,9.54586,2095.2,2094.8,4.77362]
[1742806479694,10.84213,2095.5,2094.8,4.77362]
[1742806479695,6.07,2095.5,2094.8,0.55]
[1742806479986,6.07,2095.5,2095.2,5.58764]
[1742806480190,6.07,2095.5,2095.3,4.77238]
[1742806480397,4.77179,2095.7,2095.3,4.77238]
[1742806480601,4.77179,2095.7,2095.3,9.59253073]
[1742806480801,9.54364,2095.7,2095.3,4.82010073]
[1742806481103,4.77221,2095.5,2095.2,6.4279]
[1742806481296,4.77206,2095.6,2095.2,10.3858]
[1742806481499,4.77233,2095.5,2095.2,5.613]
[1742806481902,6.07,2095.8,2095.3,4.77257]
[1742806482103,4.77189,2095.7,2095.3,4.77257]
[1742806482310,4.77193,2095.6,2095.3,4.77257]
[1742806482483,4.77213,2095.5,2095.2,5.613]
[1742806482679,6.07,2095.8,2095.2,5.613]
[1742806482883,4.77221,2095.5,2095.2,5.613]
[1742806483313,4.77168,2095.7,2095.2,10.43342345]
[1742806483515,4.77201,2095.6,2095.2,10.3857]
[1742806483694,4.77215,2095.5,2095.2,10.3857]
[1742806484219,9.54446,2095.5,2095.2,5.613]
[1742806484519,4.77215,2095.5,2095.2,5.613]
[1742806484690,4.77239,2095.4,2095.1,0.9589977]
[1742806484891,0.8292,2095.6,2095.1,5.7319677]
[1742806485097,0.8292,2095.6,2095.1,0.9589977]
[1742806485098,4.77216,2095.5,2095.1,0.9589977]
[1742806485297,4.77216,2095.5,2095.1,5.7319077]
[1742806485504,4.77245,2095.4,2095.1,0.9589977]
[1742806485704,6.07,2095.5,2095.1,0.9589977]
[1742806485909,4.77266,2095.3,2095.1,0.9589977]
[1742806486110,4.77281,2095.2,2095.1,0.9589977]
[1742806487416,5.56711,2095.2,2095.1,0.9589977]
[1742806488702,4.77266,2095.3,2095.1,0.9589977]
[1742806488911,4.77236,2095.4,2095.1,0.9589977]
[1742806489199,11.64565,2095.5,2095.1,0.9589977]
[1742806489200,6.07,2095.5,2095.1,1.61267347]
[1742806489397,6.07,2095.5,2095.2,4.77278]
[1742806490196,6.07,2095.5,2095.3,4.7725]
[1742806490906,6.07,2095.5,2095.2,9.54542]
[1742806492528,6.07,2095.5,2095.3,4.77258]
[1742806493329,6.8224,2096.2,2095.4,1.3788]
[1742806493624,0.7524,2096.6,2096.0,4.77091]
[1742806493829,6.8224,2096.6,2096.5,4.76985]
[1742806493997,11.59211,2096.6,2096.1,5.72237014]
[1742806494331,4.77008,2096.4,2095.9,15.91593]
[1742806494526,4.77055,2096.2,2095.8,15.0887]
[1742806494730,4.77032,2096.3,2095.9,4.77109]
[1742806494905,4.77023,2096.4,2096.0,4.77089]
[1742806495619,4.77031,2096.3,2096.0,4.77089]
[1742806495819,4.77031,2096.3,2095.9,4.77114]
[1742806496018,5.997483,2096.5,2096.1,4.77072]
[1742806496215,4.7704,2096.3,2095.9,4.77116]
[1742806496423,4.77073,2096.2,2095.8,10.30942]
[1742806496728,5.55441,2096.1,2095.6,37.45732]
[1742806496927,4.77107,2096.0,2095.6,37.45726]
[1742806497302,4.77107,2096.0,2095.6,42.22894]
[1742806497532,4.77107,2096.0,2095.6,37.45718]
[1742806497746,4.77107,2096.0,2095.4,1.27638483]
[1742806497747,4.77164,2095.8,2095.4,5.526]
[1742806498028,4.77156,2095.8,2095.4,10.29832]
[1742806498205,4.77169,2095.7,2095.4,10.29832]
[1742806498405,4.77133,2095.9,2095.4,10.29833]
[1742806498629,4.77155,2095.8,2095.4,10.29833]
[1742806499038,4.77179,2095.7,2095.4,5.526]
[1742806499238,4.77179,2095.7,2095.3,5.59403]
[1742806499239,9.54367,2095.7,2095.3,4.77243]
[1742806499541,4.77216,2095.5,2095.1,15.05885]
[1742806499741,4.77216,2095.5,2095.1,14.57736348]
[1742806500145,5.54516,2095.6,2095.2,4.77279]
[1742806500317,5.54516,2095.6,2095.0,11.02614483]
[1742806500318,4.77245,2095.4,2095.0,11.02614483]
[1742806500514,3.7732,2095.6,2095.0,0.72638483]
[1742806500714,4.77255,2095.4,2095.0,5.49962483]
[1742806500912,4.77255,2095.4,2095.0,4.77324]
[1742806501130,9.54507,2095.4,2095.0,4.77324]
[1742806501331,4.77291,2095.2,2094.9,27.10238483]
[1742806501508,4.77291,2095.2,2094.9,0.72638483]
[1742806501924,4.77291,2095.2,2095.1,0.93946009]
[1742806502325,7.085561,2095.2,2095.1,0.93946009]
[1742806503219,5.52401,2095.2,2095.1,0.93946009]
[1742806503818,6.07,2095.4,2095.2,4.77272]
[1742806504443,6.07,2095.4,2095.1,5.71245009]
[1742806505254,6.07,2095.4,2095.1,10.48535009]
[1742806505549,6.07,2095.4,2095.1,5.71236009]
[1742806506045,9.54448,2095.5,2095.1,5.71236009]
[1742806506337,9.54445,2095.5,2095.1,5.71236009]
[1742806506545,4.77215,2095.5,2095.1,5.71236009]
[1742806506752,4.77239,2095.4,2095.1,5.71236009]
[1742806506947,4.77239,2095.4,2095.1,0.93946009]
[1742806507152,11.106364,2095.4,2095.1,0.93946009]
[1742806507352,6.333844,2095.4,2095.1,0.93946009]
[1742806507525,4.77222,2095.5,2095.1,0.93946009]
[1742806507722,4.77237,2095.4,2095.1,5.71238009]
[1742806507917,4.77237,2095.4,2095.1,0.93946009]
[1742806508152,4.77264,2095.3,2095.1,0.93946009]
[1742806508450,9.5449,2095.4,2095.1,0.93946009]
[1742806508653,4.77281,2095.2,2095.1,0.93946009]
[1742806509451,0.766,2095.2,2095.1,0.93946009]
[1742806509625,4.77281,2095.2,2095.1,0.93946009]
[1742806510449,7.09987,2095.4,2095.1,0.93946009]
[1742806510952,3.7769,2095.6,2095.3,4.77242]
[1742806511324,8.54883,2095.6,2095.3,4.77242]
[1742806511535,3.7769,2095.6,2095.5,0.94510168]
[1742806511852,10.8417,2095.7,2095.5,0.94510168]
[1742806512020,6.07,2095.7,2095.5,5.71702168]
[1742806512226,6.07,2095.7,2095.5,0.94510168]
[1742806512437,10.84177,2095.7,2095.5,0.94510168]
[1742806513343,15.61363,2095.7,2095.5,0.94510168]
[1742806513546,4.7719,2095.6,2095.5,0.94510168]
[1742806515336,12.62151672,2095.7,2095.5,0.94510168]
[1742806515542,6.07,2095.7,2095.5,0.94510168]
[1742806515742,10.84173,2095.7,2095.5,0.94510168]
[1742806516426,10.84175,2095.7,2095.5,0.94510168]
[1742806516630,6.8922,2095.9,2095.6,4.77176]
[1742806516830,6.07,2095.9,2095.5,6.53990168]
[1742806517050,6.07,2095.9,2095.6,4.77179]
[1742806517447,6.07,2095.9,2095.7,4.77167]
[1742806517832,6.07,2095.9,2095.7,4.77155]
[1742806518458,10.84079,2096.1,2095.7,4.77155]
[1742806518661,10.84079,2096.1,2095.7,6.02201319]
[1742806518860,10.84079,2096.1,2096.0,0.9496726]
[1742806519268,6.07,2096.1,2096.0,0.9496726]
[1742806519432,4.77034,2096.3,2096.0,0.9496726]
[1742806519631,4.77055,2096.2,2096.0,0.9496726]
[1742806519864,5.58656,2096.1,2096.0,0.9496726]
[1742806520238,4.77125,2095.9,2095.5,10.98002]
[1742806520564,4.77125,2095.9,2095.5,15.752]
[1742806520945,4.77125,2095.9,2095.8,0.94164316]
[1742806521636,10.841,2096.0,2095.8,0.94164316]
[1742806522366,12.5884325,2096.0,2095.8,0.94164316]
[1742806523065,17.3596125,2096.0,2095.8,0.94164316]
[1742806523361,4.77122,2095.9,2095.8,0.94164316]
[1742806523949,12.5884725,2096.0,2095.8,0.94164316]
[1742806524152,10.84104,2096.0,2095.8,0.94164316]
[1742806524358,15.61222,2096.0,2095.8,0.94164316]
[1742806524558,4.77122,2095.9,2095.8,0.94164316]
[1742806525669,14.61102,2095.9,2095.8,0.94164316]
[1742806526576,7.58e-06,2096.5,2096.0,0.55]
[1742806526882,4.76837,2097.2,2096.6,4.76949]
[1742806527083,5.245337,2097.1,2096.5,0.55]
[1742806527248,0.8023,2097.0,2096.6,4.76954]
[1742806527576,0.8023,2097.0,2096.9,0.96767102]
[1742806527787,0.8023,2097.0,2096.5,5.31984]
[1742806528093,5.57104,2097.0,2096.5,5.31984]
[1742806528286,5.57104,2097.0,2096.5,5.31969]
[1742806528489,5.57107,2097.0,2096.5,6.475149]
[1742806528691,0.8023,2097.0,2096.6,4.76959]
[1742806529987,0.8023,2097.0,2096.6,9.53909]
[1742806530359,0.8023,2097.0,2096.7,4.76936]
[1742806530584,0.8023,2097.0,2096.5,1.705459]
[1742806530585,4.76904,2096.9,2096.5,5.925229]
[1742806530790,5.3738077,2096.9,2096.4,4.7699]
[1742806531082,4.76918,2096.8,2096.4,4.7699]
[1742806531387,4.76918,2096.8,2096.3,4.77023]
[1742806531388,4.7694,2096.7,2096.3,4.77023]
[1742806531591,4.76918,2096.8,2096.4,4.77006]
[1742806532360,4.76918,2096.8,2096.3,4.77023]
[1742806532566,4.76947,2096.7,2096.3,9.54038]
[1742806533300,0.818,2096.7,2096.0,0.8144]
[1742806533595,0.818,2096.7,2096.2,4.77042]
[1742806533596,10.3571,2096.7,2096.2,4.77042]
[1742806533796,4.76965,2096.6,2096.2,4.77042]
[1742806535191,9.53943,2096.6,2096.2,4.77042]
[1742806535365,15.60943,2096.6,2096.2,4.77042]
[1742806535788,4.76985,2096.5,2096.2,4.77042]
[1742806535965,10.83965,2096.6,2096.2,4.77042]
[1742806536694,15.60943,2096.6,2096.2,4.77042]
[1742806538499,10.83965,2096.6,2096.2,4.77042]
[1742806538794,6.07,2096.6,2096.2,1.573958]
[1742806538999,6.07,2096.6,2096.4,9.53994]
[1742806539300,6.07,2096.6,2096.4,4.76997]
[1742806540167,6.07,2096.6,2096.3,4.77022]
[1742806540367,6.07,2096.6,2096.3,4.7703]
[1742806541095,6.07,2096.6,2096.3,9.54046]
[1742806541300,11.6574,2096.7,2096.3,4.77016]
[1742806541499,11.6574,2096.7,2096.3,4.7703]
[1742806541699,16.42696,2096.7,2096.3,4.7703]
[1742806541873,4.76973,2096.6,2096.2,11.114878]
[1742806542078,11.6574,2096.7,2096.3,4.7703]
[1742806542303,6.888,2096.7,2096.4,4.77]
[1742806542682,11.65747,2096.7,2096.3,4.77018]
[1742806542867,11.65747,2096.7,2096.2,6.344348]
[1742806543073,11.65747,2096.7,2096.3,4.77025]
[1742806543274,4.76967,2096.6,2096.2,6.344348]
[1742806543474,4.76967,2096.6,2096.2,1.573958]
[1742806543778,4.76995,2096.5,2096.1,10.12374]
[1742806544176,4.76995,2096.5,2096.1,14.89435]
[1742806544410,4.76962,2096.6,2096.2,4.77051]
[1742806545407,9.53943,2096.6,2096.2,4.77051]
[1742806546007,9.53941,2096.6,2096.2,4.77051]
[1742806546315,9.53939,2096.6,2096.2,4.77051]
[1742806546491,4.76962,2096.6,2096.2,4.77051]
[1742806546892,6.07,2096.7,2096.4,4.76987]
[1742806548213,10.83942,2096.7,2096.3,4.77017]
[1742806548414,10.83942,2096.7,2096.4,4.77002]
[1742806549712,4.76997,2096.5,2096.1,5.32076]
[1742806550011,5.58797,2096.5,2096.1,10.631952]
[1742806550212,5.58797,2096.5,2096.1,4.77066]
[1742806550582,4.76966,2096.6,2096.2,4.77051]
[1742806550915,5.54606,2096.6,2096.2,4.77051]
[1742806551302,10.31585,2096.6,2096.2,4.77051]
[1742806551514,5.54606,2096.6,2096.2,4.77051]
[1742806551707,4.76985,2096.5,2096.2,4.77051]
[1742806552110,5.54606,2096.6,2096.2,4.77051]
[1742806552419,10.31581,2096.6,2096.2,5.806062]
[1742806552719,5.54606,2096.6,2096.2,10.576482]
[1742806552899,11.61606,2096.6,2096.2,5.805972]
[1742806554018,6.07,2096.6,2096.5,4.76985]
[1742806554219,6.07,2096.6,2096.5,6.88429]
[1742806554913,6.07,2096.6,2096.5,7.71618314]
[1742806555492,6.07,2096.6,2096.5,7.66849]
[1742806557997,6.07,2096.6,2096.5,12.91649]
[1742806558922,10.83879,2097.0,2096.6,5.31948]
[1742806559135,10.83879,2097.0,2096.6,0.55]
[1742806559334,6.07,2097.0,2096.7,4.76926]
[1742806559911,6.07,2097.0,2096.7,9.53856]
[1742806560307,0.8143,2097.7,2097.1,4.76828]
[1742806560512,5.5815,2097.7,2097.3,4.76793]
[1742806560727,0.8143,2097.7,2097.5,4.76753]
[1742806561134,0.8143,2097.7,2097.3,9.53591]
[1742806561336,5.58152,2097.7,2097.3,4.76792]
[1742806561644,10.3488,2097.7,2097.3,4.76792]
[1742806562142,4.76739,2097.6,2097.3,4.76792]
[1742806564744,6.07,2097.8,2097.6,4.76724]
[1742806564911,6.07,2098.0,2097.7,4.76697]
[1742806565314,6.07,2098.0,2097.8,4.7667]
[1742806565520,6.07,2098.0,2097.9,4.76667]
[1742806565744,6.07,2098.0,2097.8,9.53345]
[1742806566046,6.07,2098.0,2097.9,4.76667]
[1742806566342,0.00720967,2098.1,2098.0,4.76644]
[1742806566517,0.00720967,2098.1,2098.0,5.31644]
[1742806566945,0.00720967,2098.1,2097.9,4.76667]
[1742806567245,0.00720967,2098.1,2097.9,4.76658]
[1742806567546,0.00720967,2098.1,2097.8,5.31683]
[1742806568012,0.00720967,2098.1,2097.7,5.31704]
[1742806568212,9.53985967,2098.1,2097.7,5.3171]
[1742806568411,4.76645,2098.0,2097.6,9.99132]
[1742806568617,4.76667,2097.9,2097.6,4.76732]
[1742806568921,4.76733,2097.7,2097.3,11.530737]
[1742806569153,4.76743,2097.6,2097.2,0.8298]
[1742806569336,4.76715,2097.7,2097.4,4.76768]
[1742806569682,6.07,2097.9,2097.8,5.31689]
[1742806572061,0.00720967,2098.1,2098.0,4.76644]
[1742806572267,0.00720967,2098.1,2098.0,5.53454]
[1742806572563,0.00720967,2098.1,2098.0,7.61915]
[1742806573272,0.00720967,2098.1,2098.0,8.16915]
[1742806573566,9.67e-06,2098.5,2098.4,5.31553]
[1742806573774,7.41505,2098.9,2098.4,5.31553]
[1742806573775,6.7e-06,2099.1,2099.0,4.76417]
[1742806574061,4.7639867,2099.1,2098.7,0.7593]
[1742806574261,6.7e-06,2099.1,2099.0,5.53097]
[1742806574463,6.7e-06,2099.1,2099.0,8.118361]
[1742806574640,6.7e-06,2099.1,2098.8,10.84535]
[1742806574844,4.76462,2098.8,2098.7,1.431582]
[1742806575032,4.76462,2098.8,2098.4,4.76545]
[1742806575235,4.7645,2098.9,2098.4,4.76536]
[1742806575430,4.7645,2098.9,2098.5,4.76529]
[1742806575669,5.32211067,2098.9,2098.5,4.76529]
[1742806575865,0.55761067,2098.9,2098.5,4.76515]
[1742806576162,4.76471,2098.8,2098.4,4.76544]
[1742806576364,0.55761067,2098.9,2098.3,0.7742]
[1742806576567,4.76546,2098.5,2098.1,0.72638483]
[1742806576867,5.55057,2098.3,2097.9,5.348]
[1742806577039,4.76622,2098.1,2097.9,5.348]
[1742806577239,10.31646,2098.3,2097.9,5.348]
[1742806577440,4.76607,2098.2,2097.7,31.1151]
[1742806577662,4.76607,2098.2,2097.7,8.02658848]
[1742806577863,4.76607,2098.2,2097.7,3.25948848]
[1742806578057,4.76631,2098.1,2097.6,16.36312483]
[1742806578362,0.7846,2098.3,2097.8,4.76689]
[1742806578785,0.7846,2098.3,2097.6,6.24691483]
[1742806578946,4.76635,2098.1,2097.6,6.24691483]
[1742806579262,4.76635,2098.1,2097.6,4.76713]
[1742806579493,4.76684,2097.9,2097.6,1.564771]
[1742806579639,4.76645,2098.0,2097.6,1.564771]
[1742806579966,4.76679,2097.9,2097.4,5.53663]
[1742806580171,0.7824,2097.8,2097.1,27.1234]
[1742806580467,4.76769,2097.5,2097.1,36.05127064]
[1742806580661,4.76769,2097.5,2097.1,9.70527064]
[1742806580857,4.76781,2097.4,2097.1,9.70527064]
[1742806581064,4.76769,2097.5,2097.1,6.1194]
[1742806581443,4.76769,2097.5,2097.1,5.342]
[1742806582171,4.76769,2097.5,2097.0,0.55]
[1742806582172,4.76789,2097.4,2097.0,0.55]
[1742806582474,4.76788,2097.4,2097.0,0.55]
[1742806582677,4.76759,2097.5,2097.0,6.53439348]
[1742806583169,4.76761,2097.5,2097.0,1.76578348]
[1742806583480,4.76761,2097.5,2097.0,6.53441348]
[1742806583971,4.76781,2097.4,2097.0,6.53441348]
[1742806584144,4.76781,2097.4,2097.0,1.76578348]
[1742806584349,4.76781,2097.4,2097.0,6.53447348]
[1742806584649,4.76781,2097.4,2097.0,1.76578348]
[1742806584977,4.76758,2097.5,2097.0,6.53448348]
[1742806585181,5.329,2097.7,2097.0,1.21578348]
[1742806585182,4.7679,2097.4,2097.0,1.21578348]
[1742806585374,4.76875,2097.0,2096.5,0.7568]
[1742806585593,0.819,2097.2,2096.5,0.7568]
[1742806585762,4.76897,2096.9,2096.5,0.7568]
[1742806585962,4.76897,2096.9,2096.6,0.62530648]
[1742806586473,4.76848,2097.1,2096.6,0.62530648]
[1742806586685,4.76881,2097.0,2096.6,0.62530648]
[1742806587154,11.65748,2097.2,2096.6,0.62530648]
[1742806587359,4.76909,2096.9,2096.5,0.7568]
[1742806587562,4.76919,2096.8,2096.5,0.7568]
[1742806587950,4.769,2096.9,2096.5,0.7568]
[1742806588145,9.53812,2096.9,2096.5,0.7568]
[1742806588350,4.769,2096.9,2096.5,0.7568]
[1742806588571,4.769,2096.9,2096.5,6.17795063]
[1742806589045,6.889,2097.2,2096.5,6.17795063]
[1742806589276,4.76884,2097.0,2096.5,6.17795063]
[1742806589785,4.76911,2096.9,2096.5,0.65138063]
[1742806590075,4.76848,2097.1,2096.5,0.65138063]
[1742806590269,9.53856,2096.8,2096.3,6.51262634]
[1742806590464,4.76941,2096.7,2096.3,6.51262634]
[1742806590776,6.941919,2097.1,2096.3,0.43708634]
[1742806590777,3.7869,2096.9,2096.3,0.43708634]
[1742806590976,5.75980295,2096.8,2096.3,0.43708634]
[1742806591177,9.53912,2096.7,2096.3,1.39643212]
[1742806591474,4.76963,2096.6,2096.3,1.39643212]
[1742806591848,4.76963,2096.6,2096.3,0.95934578]
[1742806592778,4.76924,2096.8,2096.4,4.77007]
[1742806592974,4.76952,2096.7,2096.3,5.72960578]
[1742806593163,4.76952,2096.7,2096.4,1.04999958]
[1742806594180,3.0,2096.7,2096.4,1.04999958]
[1742806594556,3.0,2096.7,2096.4,5.81999958]
[1742806594755,3.0,2096.7,2096.4,1.04999958]
[1742806595286,7.7694,2096.7,2096.4,1.04999958]